fUSD/lending_fUSD_20260531
["ID","MTS","AMOUNT","RATE_DAILY","PERIOD"]
[423506050,1780174251000,-150.0,0.00031477,2]
[423506051,1780174251000,-163.0,0.00031477,2]
[423506047,1780174251000,-865.67,0.000314,7]
[423506055,1780174251000,-150.223,0.00031477,2]
[423506057,1780174251000,-150.524,0.00031477,2]
[423506056,1780174251000,-150.0,0.00031477,2]
[423506065,1780174251000,-779.99132691,0.00031614,2]
[423506066,1780174251000,-794.01513625,0.00031614,2]
[423506043,1780174251000,-95022.0439524,0.00031291,2]
[423506062,1780174251000,-1011.2431697,0.00031608,2]
[423506061,1780174251000,-150.597,0.00031477,2]
[423506064,1780174251000,-935.40154659,0.00031613,2]
[423506058,1780174251000,-150.0,0.00031477,2]
[423506060,1780174251000,-151.0,0.00031477,2]
[423506063,1780174251000,-957.07833161,0.00031608,2]
[423506059,1780174251000,-167.287,0.00031477,2]
[423506068,1780174251000,-153.0,0.0003163,30]
[423506067,1780174251000,-152.0,0.0003163,30]
[423506069,1780174251000,-322.0,0.0003163,30]
[423506070,1780174251000,-153.0,0.0003163,30]
[423506071,1780174251000,-156.0,0.0003163,30]
[423506072,1780174251000,-631.0,0.0003163,30]
[423506073,1780174251000,-156.0,0.0003163,30]
[423506054,1780174251000,-151.536,0.00031477,2]
[423506044,1780174251000,-762.6515212,0.00031291,2]
[423506012,1780174251000,-166.55246395,0.00031025,2]
[423506052,1780174251000,-150.0,0.00031477,2]
[423506053,1780174251000,-150.0,0.00031477,2]
[423506009,1780174251000,-535.91519898,0.00031025,2]
[423506016,1780174251000,-429.39211997,0.00031025,2]
[423506074,1780174251000,-158.0,0.00031645,30]
[423506026,1780174251000,-521.13569057,0.00031025,2]
[423506027,1780174251000,-572.39668443,0.00031025,2]
[423506015,1780174251000,-655.23316515,0.00031025,2]
[423506018,1780174251000,-409.70046886,0.00031025,2]
[423506022,1780174251000,-608.63080657,0.00031025,2]
[423506024,1780174251000,-577.64447227,0.00031025,2]
[423506021,1780174251000,-462.70160617,0.00031025,2]
[423506023,1780174251000,-476.48596512,0.00031025,2]
[423506017,1780174251000,-442.67206835,0.00031025,2]
[423506020,1780174251000,-411.08845821,0.00031025,2]
[423506019,1780174251000,-516.20591911,0.00031025,2]
[423506028,1780174251000,-547.35923481,0.00031025,2]
[423506025,1780174251000,-420.89337194,0.00031025,2]
[423506036,1780174251000,-849.49291123,0.00031071,2]
[423506029,1780174251000,-449.6218561,0.00031025,2]
[423506031,1780174251000,-224.04058745,0.00031025,2]
[423506033,1780174251000,-474.03496185,0.00031033,2]
[423506040,1780174251000,-601.0,0.00031184,8]
[423506032,1780174251000,-486.87470693,0.00031025,2]
[423506042,1780174251000,-523.14,0.000312,7]
[423506034,1780174251000,-456.32860499,0.00031033,2]
[423506035,1780174251000,-453.43188454,0.00031033,2]
[423506037,1780174251000,-200.0,0.00031096,2]
[423506039,1780174251000,-1415.02,0.000311,14]
[423506030,1780174251000,-231.01700694,0.00031025,2]
[423506038,1780174251000,-313.97,0.00031096,2]
[423506113,1780174252000,-192.0,0.00032645,30]
[423506122,1780174252000,-350.0,0.00033014,5]
[423506115,1780174252000,-3365.52781143,0.00032781,7]
[423506112,1780174252000,-187.0,0.00032645,30]
[423506118,1780174252000,-213.32,0.00032877,2]
[423506110,1780174252000,-156.0,0.0003263,30]
[423506120,1780174252000,-447.781611,0.00033,14]
[423506108,1780174252000,-156.0,0.0003263,30]
[423506114,1780174252000,-310.79408857,0.00032781,7]
[423506117,1780174252000,-170.35332561,0.00032876,30]
[423506119,1780174252000,-660.1267279,0.00032877,2]
[423506134,1780174252000,-151.0,0.00033623,14]
[423506116,1780174252000,-601.0,0.00032848,10]
[423506133,1780174252000,-150.0,0.00033451,2]
[423506137,1780174252000,-322.0,0.0003363,30]
[423506132,1780174252000,-601.0,0.00033403,10]
[423506124,1780174252000,-3550.0,0.00033125,2]
[423506125,1780174252000,-1356.0,0.00033125,2]
[423506123,1780174252000,-4199.79,0.00033033,14]
[423506129,1780174252000,-3638.0,0.00033125,2]
[423506131,1780174252000,-1500.0,0.000334,7]
[423506128,1780174252000,-932.0,0.00033125,2]
[423506126,1780174252000,-1272.0,0.00033125,2]
[423506127,1780174252000,-1226.0,0.00033125,2]
[423506130,1780174252000,-11551.85948174,0.00033375,2]
[423506136,1780174252000,-157.0,0.0003363,30]
[423506135,1780174252000,-152.0,0.0003363,30]
[423506147,1780174252000,-865.67,0.000339,30]
[423506111,1780174252000,-158.0,0.00032645,30]
[423506121,1780174252000,-865.67,0.00033,30]
[423506109,1780174252000,-631.0,0.0003263,30]
[423506088,1780174252000,-601.0,0.00032294,9]
[423506101,1780174252000,-952.81816349,0.00032497,2]
[423506078,1780174252000,-350.0,0.00031785,21]
[423506146,1780174252000,-523.14,0.000339,30]
[423506076,1780174252000,-192.0,0.00031645,30]
[423506075,1780174252000,-187.0,0.00031645,30]
[423506077,1780174252000,-601.0,0.00031739,9]
[423506081,1780174252000,-166.26,0.000319,7]
[423506091,1780174252000,-151.0,0.00032329,7]
[423506080,1780174252000,-150.0,0.00031858,2]
[423506092,1780174252000,-151.0,0.00032329,7]
[423506093,1780174252000,-151.0,0.00032329,7]
[423506083,1780174252000,-700.0,0.00032,2]
[423506082,1780174252000,-4199.79,0.00031963,14]
[423506087,1780174252000,-151.0,0.0003221,5]
[423506086,1780174252000,-160.0,0.000322,12]
[423506107,1780174252000,-153.0,0.0003263,30]
[423506084,1780174252000,-200.0,0.00032055,2]
[423506090,1780174252000,-151.0,0.00032329,7]
[423506089,1780174252000,-151.0,0.00032329,7]
[423506095,1780174252000,-151.0,0.00032329,7]
[423506106,1780174252000,-322.0,0.0003263,30]
[423506100,1780174252000,-1122.48185591,0.00032496,2]
[423506105,1780174252000,-153.0,0.0003263,30]
[423506096,1780174252000,-151.0,0.00032329,7]
[423506097,1780174252000,-151.0,0.00032329,7]
[423506103,1780174252000,-1074.8279749,0.00032497,2]
[423506094,1780174252000,-151.0,0.00032329,7]
[423506098,1780174252000,-151.0,0.00032329,7]
[423506099,1780174252000,-199.566692,0.00032329,7]
[423506102,1780174252000,-1106.36541149,0.00032497,2]
[423506104,1780174252000,-152.0,0.0003263,30]
[423506085,1780174252000,-865.67,0.000321,7]
[423506079,1780174252000,-100000.0,0.000318,120]
[423506148,1780174252000,-601.0,0.00033958,11]
[423506144,1780174252000,-192.0,0.00033645,30]
[423506175,1780174252000,-251.3699183,0.00034799,2]
[423506177,1780174252000,-350.0,0.00034931,5]
[423506178,1780174252000,-64026.7340136,0.00035,6]
[423506179,1780174252000,-171.38978409,0.00035,120]
[423506182,1780174252000,-150.0,0.00035124,2]
[423506183,1780174252000,-468.5,0.0003513,69]
[423506180,1780174252000,-545101.51211594,0.00035,7]
[423506181,1780174252000,-601.0,0.00035067,12]
[423506185,1780174252000,-250.0,0.00035334,7]
[423506184,1780174252000,-4199.79,0.00035174,14]
[423506188,1780174252000,-300.0,0.00035348,2]
[423506198,1780174252000,-613.73374348,0.00035493,2]
[423506197,1780174252000,-164.37,0.00035479,120]
[423506187,1780174252000,-300.0,0.00035348,2]
[423506192,1780174252000,-302.5126713,0.00035348,2]
[423506190,1780174252000,-829.13136622,0.00035348,2]
[423506193,1780174252000,-300.56957656,0.00035348,2]
[423506189,1780174252000,-300.0,0.00035348,2]
[423506199,1780174252000,-523.14,0.000355,30]
[423506191,1780174252000,-301.06704068,0.00035348,2]
[423506195,1780174252000,-527.36598462,0.00035348,2]
[423506196,1780174252000,-683.04860807,0.00035438,2]
[423506194,1780174252000,-300.0,0.00035348,2]
[423506200,1780174252000,-2251.87,0.00035604,7]
[423506201,1780174252000,-5800.0,0.00035608,2]
[423506202,1780174252000,-150.0,0.00035616,60]
[423506205,1780174252000,-198.578332,0.00035616,7]
[423506142,1780174252000,-158.0,0.00033645,30]
[423506204,1780174252000,-151.0,0.00035616,7]
[423506186,1780174252000,-25933.1528834,0.00035336,2]
[423506176,1780174252000,-1001.0,0.00034849,120]
[423506203,1780174252000,-5800.0,0.00035616,2]
[423506170,1780174252000,-192.0,0.00034645,30]
[423506169,1780174252000,-187.0,0.00034645,30]
[423506139,1780174252000,-156.0,0.0003363,30]
[423506140,1780174252000,-631.0,0.0003363,30]
[423506143,1780174252000,-187.0,0.00033645,30]
[423506138,1780174252000,-153.0,0.0003363,30]
[423506145,1780174252000,-211.38403459,0.00033764,2]
[423506149,1780174252000,-350.0,0.00033973,5]
[423506150,1780174252000,-4199.79,0.00034104,14]
[423506151,1780174252000,-151.0,0.00034182,7]
[423506160,1780174252000,-187.4,0.0003459,30]
[423506155,1780174252000,-150.0,0.00034477,2]
[423506152,1780174252000,-150.0,0.00034477,2]
[423506154,1780174252000,-150.0,0.00034477,2]
[423506153,1780174252000,-150.0,0.00034477,2]
[423506156,1780174252000,-150.0,0.00034477,2]
[423506141,1780174252000,-156.0,0.0003363,30]
[423506158,1780174252000,-601.0,0.00034513,11]
[423506168,1780174252000,-170.0,0.00034645,30]
[423506171,1780174252000,-1500.0,0.00034795,2]
[423506167,1780174252000,-156.0,0.0003463,30]
[423506162,1780174252000,-152.0,0.0003463,30]
[423506159,1780174252000,-953.61,0.00034521,120]
[423506165,1780174252000,-156.0,0.0003463,30]
[423506166,1780174252000,-631.0,0.0003463,30]
[423506174,1780174252000,-7365.6955172,0.00034799,2]
[423506163,1780174252000,-322.0,0.0003463,30]
[423506164,1780174252000,-153.0,0.0003463,30]
[423506172,1780174252000,-21202.2838847,0.00034799,2]
[423506173,1780174252000,-170.170556,0.00034799,2]
[423506157,1780174252000,-150.0,0.00034477,2]
[423506161,1780174252000,-605.1058374,0.00034596,2]
[423506259,1780174253000,-1567.295365,0.00035616,7]
[423506249,1780174253000,-1567.295365,0.00035616,7]
[423506243,1780174253000,-2218.071471,0.00035616,7]
[423506242,1780174253000,-2218.071471,0.00035616,7]
[423506246,1780174253000,-2218.071471,0.00035616,7]
[423506238,1780174253000,-2218.071471,0.00035616,7]
[423506247,1780174253000,-2218.071471,0.00035616,7]
[423506244,1780174253000,-2218.071471,0.00035616,7]
[423506245,1780174253000,-2218.071471,0.00035616,7]
[423506240,1780174253000,-2218.071471,0.00035616,7]
[423506248,1780174253000,-2218.071473,0.00035616,7]
[423506241,1780174253000,-2218.071471,0.00035616,7]
[423506258,1780174253000,-1567.295365,0.00035616,7]
[423506252,1780174253000,-1567.295365,0.00035616,7]
[423506250,1780174253000,-1567.295365,0.00035616,7]
[423506261,1780174253000,-1567.295365,0.00035616,7]
[423506256,1780174253000,-1567.295365,0.00035616,7]
[423506251,1780174253000,-1567.295365,0.00035616,7]
[423506264,1780174253000,-1567.295365,0.00035616,7]
[423506254,1780174253000,-1567.295365,0.00035616,7]
[423506255,1780174253000,-1567.295365,0.00035616,7]
[423506253,1780174253000,-1567.295365,0.00035616,7]
[423506257,1780174253000,-1567.295365,0.00035616,7]
[423506263,1780174253000,-1567.295365,0.00035616,7]
[423506262,1780174253000,-1567.295365,0.00035616,7]
[423506273,1780174253000,-151.0,0.00035616,7]
[423506237,1780174253000,-2218.071471,0.00035616,7]
[423506260,1780174253000,-1567.295365,0.00035616,7]
[423506239,1780174253000,-2218.071471,0.00035616,7]
[423506222,1780174253000,-151.0,0.00035616,7]
[423506231,1780174253000,-2218.071471,0.00035616,7]
[423506208,1780174253000,-198.578341,0.00035616,7]
[423506211,1780174253000,-185.68588,0.00035616,7]
[423506206,1780174253000,-198.578332,0.00035616,7]
[423506207,1780174253000,-198.578332,0.00035616,7]
[423506210,1780174253000,-151.0,0.00035616,7]
[423506209,1780174253000,-230.882083,0.00035616,7]
[423506212,1780174253000,-185.68588,0.00035616,7]
[423506213,1780174253000,-185.68588,0.00035616,7]
[423506214,1780174253000,-185.685872,0.00035616,7]
[423506224,1780174253000,-151.0,0.00035616,7]
[423506220,1780174253000,-1460.109516,0.00035616,7]
[423506221,1780174253000,-1460.109516,0.00035616,7]
[423506217,1780174253000,-151.0,0.00035616,7]
[423506235,1780174253000,-2218.071471,0.00035616,7]
[423506215,1780174253000,-151.0,0.00035616,7]
[423506223,1780174253000,-151.0,0.00035616,7]
[423506216,1780174253000,-151.0,0.00035616,7]
[423506219,1780174253000,-1460.109516,0.00035616,7]
[423506226,1780174253000,-151.0,0.00035616,7]
[423506236,1780174253000,-2218.071471,0.00035616,7]
[423506225,1780174253000,-151.0,0.00035616,7]
[423506227,1780174253000,-151.0,0.00035616,7]
[423506229,1780174253000,-2218.071471,0.00035616,7]
[423506230,1780174253000,-2218.071471,0.00035616,7]
[423506232,1780174253000,-2218.071471,0.00035616,7]
[423506233,1780174253000,-2218.071471,0.00035616,7]
[423506228,1780174253000,-213.32,0.00035616,2]
[423506234,1780174253000,-2218.071471,0.00035616,7]
[423506218,1780174253000,-1460.109516,0.00035616,7]
[423506272,1780174253000,-153.670873,0.00035616,7]
[423506283,1780174253000,-151.0,0.00035616,7]
[423506271,1780174253000,-151.0,0.00035616,7]
[423506300,1780174253000,-468.5,0.0003567,98]
[423506302,1780174253000,-4917.05981759,0.00035675,5]
[423506309,1780174253000,-1213.65,0.00036125,2]
[423506306,1780174253000,-350.0,0.00036099,40]
[423506307,1780174253000,-3550.0,0.00036125,2]
[423506310,1780174253000,-932.0,0.00036125,2]
[423506308,1780174253000,-1356.0,0.00036125,2]
[423506303,1780174253000,-561.1383,0.00035837,2]
[423506304,1780174253000,-500.0,0.00035878,2]
[423506305,1780174253000,-483.97,0.0003589,5]
[423506312,1780174253000,-151.0,0.00036153,30]
[423506313,1780174253000,-683.04860807,0.00036161,2]
[423506314,1780174253000,-601.0,0.00036177,13]
[423506316,1780174253000,-468.5,0.0003621,114]
[423506321,1780174253000,-164.37326,0.00036375,12]
[423506324,1780174253000,-158.72733577,0.00036429,120]
[423506317,1780174253000,-172.24772429,0.0003623,2]
[423506315,1780174253000,-1415.02,0.000362,14]
[423506318,1780174253000,-4199.79,0.00036244,30]
[423506323,1780174253000,-25428.0,0.000364,30]
[423506320,1780174253000,-9756.26,0.00036362,60]
[423506319,1780174253000,-400.57,0.00036362,60]
[423506322,1780174253000,-11801.44376659,0.000364,120]
[423506325,1780174253000,-204.41634674,0.00036504,60]
[423506328,1780174253000,-561.1383,0.00036733,2]
[423506327,1780174253000,-601.0,0.00036731,14]
[423506270,1780174253000,-151.0,0.00035616,7]
[423506311,1780174253000,-3638.0,0.00036125,2]
[423506301,1780174253000,-10258.24742002,0.00035675,5]
[423506326,1780174253000,-613.73374348,0.00036515,2]
[423506295,1780174253000,-161.0,0.0003563,30]
[423506294,1780174253000,-153.0,0.0003563,30]
[423506265,1780174253000,-1567.295365,0.00035616,7]
[423506267,1780174253000,-1567.295365,0.00035616,7]
[423506268,1780174253000,-1567.295363,0.00035616,7]
[423506269,1780174253000,-151.0,0.00035616,7]
[423506274,1780174253000,-151.0,0.00035616,7]
[423506285,1780174253000,-151.0,0.00035616,7]
[423506275,1780174253000,-151.0,0.00035616,7]
[423506278,1780174253000,-151.0,0.00035616,7]
[423506277,1780174253000,-151.0,0.00035616,7]
[423506276,1780174253000,-151.0,0.00035616,7]
[423506280,1780174253000,-151.0,0.00035616,7]
[423506281,1780174253000,-151.0,0.00035616,7]
[423506286,1780174253000,-151.0,0.00035616,7]
[423506266,1780174253000,-1567.295365,0.00035616,7]
[423506282,1780174253000,-151.0,0.00035616,7]
[423506279,1780174253000,-151.0,0.00035616,7]
[423506289,1780174253000,-151.0,0.00035616,7]
[423506293,1780174253000,-322.0,0.0003563,30]
[423506287,1780174253000,-151.0,0.00035616,7]
[423506290,1780174253000,-263.260644,0.00035616,7]
[423506291,1780174253000,-601.0,0.00035622,13]
[423506296,1780174253000,-631.0,0.0003563,30]
[423506284,1780174253000,-151.0,0.00035616,7]
[423506297,1780174253000,-156.0,0.0003563,30]
[423506288,1780174253000,-151.0,0.00035616,7]
[423506292,1780174253000,-152.0,0.0003563,30]
[423506298,1780174253000,-187.0,0.00035645,30]
[423506299,1780174253000,-192.0,0.00035645,30]
[423506368,1780174254000,-264.53307865,0.00037987,2]
[423506352,1780174254000,-468.5,0.000373,60]
[423506357,1780174254000,-150.0,0.00037477,2]
[423506372,1780174254000,-523.14,0.000381,30]
[423506361,1780174254000,-500.0,0.00037603,60]
[423506363,1780174254000,-561.1383,0.00037629,2]
[423506364,1780174254000,-379.0,0.00037662,2]
[423506365,1780174254000,-379.0,0.00037763,2]
[423506371,1780174254000,-2707.43934082,0.0003807,2]
[423506356,1780174254000,-1415.02,0.000374,14]
[423506362,1780174254000,-800.0,0.00037603,60]
[423506373,1780174254000,-1015.0,0.000381,50]
[423506367,1780174254000,-601.0,0.00037841,15]
[423506366,1780174254000,-468.5,0.0003784,86]
[423506370,1780174254000,-865.67,0.00038,30]
[423506384,1780174254000,-601.0,0.00038396,16]
[423506374,1780174254000,-379.0,0.00038102,2]
[423506375,1780174254000,-151.0,0.00038125,30]
[423506381,1780174254000,-500.0,0.00038356,120]
[423506383,1780174254000,-4199.79,0.00038385,30]
[423506377,1780174254000,-200.0,0.000382,15]
[423506380,1780174254000,-170.35332561,0.00038356,30]
[423506355,1780174254000,-638.0,0.00037326,3]
[423506379,1780174254000,-379.0,0.00038321,2]
[423506369,1780174254000,-1351.27942164,0.00038,15]
[423506353,1780174254000,-109724.473806,0.00037304,2]
[423506342,1780174254000,-375.63552825,0.000372,30]
[423506351,1780174254000,-601.0,0.00037286,14]
[423506376,1780174254000,-163.0,0.00038143,11]
[423506329,1780174254000,-468.5,0.0003676,120]
[423506331,1780174254000,-558.27841836,0.00036822,2]
[423506334,1780174254000,-11551.85948174,0.00037,2]
[423506332,1780174254000,-150.0,0.0003688,2]
[423506335,1780174254000,-613.73374348,0.00037028,2]
[423506333,1780174254000,-523.14,0.00037,30]
[423506330,1780174254000,-500.0,0.00036761,14]
[423506336,1780174254000,-2000.0,0.000371,7]
[423506338,1780174254000,-340.21310142,0.000371,30]
[423506339,1780174254000,-156.309999,0.000372,15]
[423506340,1780174254000,-375.63552826,0.000372,30]
[423506347,1780174254000,-693.70304348,0.000372,120]
[423506343,1780174254000,-693.70304349,0.000372,120]
[423506341,1780174254000,-375.63552825,0.000372,30]
[423506344,1780174254000,-693.70304348,0.000372,120]
[423506346,1780174254000,-693.70304348,0.000372,120]
[423506337,1780174254000,-340.21310144,0.000371,30]
[423506345,1780174254000,-693.70304348,0.000372,120]
[423506349,1780174254000,-158.3379102,0.00037277,2]
[423506360,1780174254000,-25428.0,0.000376,30]
[423506359,1780174254000,-379.0,0.00037571,2]
[423506348,1780174254000,-150.0,0.0003726,60]
[423506350,1780174254000,-928.26091419,0.00037283,2]
[423506354,1780174254000,-4199.79,0.00037314,30]
[423506358,1780174254000,-150.0,0.00037477,2]
[423506382,1780174254000,-468.5,0.0003838,105]
[423506378,1780174254000,-165.58,0.0003825,30]
[423506423,1780174254000,-152.0,0.00038743,30]
[423506413,1780174254000,-666.0,0.000387,120]
[423506411,1780174254000,-666.0,0.000387,120]
[423506415,1780174254000,-300.0,0.000387,14]
[423506419,1780174254000,-200.0,0.00038743,30]
[423506420,1780174254000,-8882.6885148,0.00038743,30]
[423506422,1780174254000,-500.0,0.00038743,30]
[423506429,1780174254000,-1001.0,0.00038795,7]
[423506425,1780174254000,-151.0,0.00038743,30]
[423506427,1780174254000,-248.563,0.0003875,52]
[423506426,1780174254000,-3471.11,0.0003875,52]
[423506432,1780174254000,-200.0,0.00038799,30]
[423506428,1780174254000,-780.19,0.00038756,7]
[423506421,1780174254000,-151.0,0.00038743,30]
[423506424,1780174254000,-644.79446245,0.00038743,30]
[423506431,1780174254000,-198.97225456,0.00038799,30]
[423506430,1780174254000,-240.89526768,0.00038795,7]
[423506435,1780174254000,-500.0,0.00038799,30]
[423506436,1780174254000,-152.0,0.00038799,30]
[423506433,1780174254000,-8565.75555911,0.00038799,30]
[423506437,1780174254000,-621.78829552,0.00038799,30]
[423506434,1780174254000,-151.0,0.00038799,30]
[423506439,1780174254000,-1365.0,0.000388,14]
[423506438,1780174254000,-151.0,0.00038799,30]
[423506385,1780174254000,-1415.02,0.000384,14]
[423506440,1780174254000,-700.0,0.000388,14]
[423506412,1780174254000,-666.0,0.000387,120]
[423506416,1780174254000,-152.0,0.00038717,7]
[423506417,1780174254000,-150.0,0.00038724,2]
[423506418,1780174254000,-206.33422798,0.00038743,30]
[423506387,1780174254000,-800.0,0.00038425,60]
[423506386,1780174254000,-389.75,0.00038411,60]
[423506393,1780174254000,-456.96,0.00038571,30]
[423506395,1780174254000,-382.1,0.0003859,30]
[423506388,1780174254000,-1000.0,0.00038458,90]
[423506396,1780174254000,-900.0,0.000386,14]
[423506389,1780174254000,-617.84480936,0.00038471,90]
[423506414,1780174254000,-900.0,0.000387,14]
[423506392,1780174254000,-780.19,0.00038561,7]
[423506394,1780174254000,-506.22,0.0003859,30]
[423506397,1780174254000,-300.0,0.000386,14]
[423506391,1780174254000,-800.0,0.000385,120]
[423506399,1780174254000,-151.0,0.00038655,14]
[423506390,1780174254000,-2000.0,0.000385,60]
[423506402,1780174254000,-9211.34798987,0.00038658,53]
[423506400,1780174254000,-213.96859442,0.00038658,53]
[423506401,1780174254000,-200.0,0.00038658,53]
[423506409,1780174254000,-666.0,0.000387,120]
[423506410,1780174254000,-514.313,0.000387,120]
[423506403,1780174254000,-151.0,0.00038658,53]
[423506406,1780174254000,-668.6518576,0.00038658,53]
[423506407,1780174254000,-151.0,0.00038658,53]
[423506408,1780174254000,-160.0,0.000387,43]
[423506404,1780174254000,-500.0,0.00038658,53]
[423506405,1780174254000,-152.0,0.00038658,53]
[423506398,1780174254000,-1000.0,0.00038645,120]
[423506473,1780174255000,-3000.0,0.00039056,2]
[423506483,1780174255000,-3000.0,0.00039056,2]
[423506481,1780174255000,-3000.0,0.00039056,2]
[423506482,1780174255000,-3000.0,0.00039056,2]
[423506480,1780174255000,-3000.0,0.00039056,2]
[423506478,1780174255000,-3000.0,0.00039056,2]
[423506477,1780174255000,-3000.0,0.00039056,2]
[423506476,1780174255000,-3000.0,0.00039056,2]
[423506487,1780174255000,-379.0,0.00039119,2]
[423506488,1780174255000,-3550.0,0.00039125,2]
[423506474,1780174255000,-3000.0,0.00039056,2]
[423506484,1780174255000,-3000.0,0.00039056,2]
[423506479,1780174255000,-3000.0,0.00039056,2]
[423506486,1780174255000,-2635.12779659,0.0003906,30]
[423506510,1780174255000,-300.0,0.00039178,120]
[423506500,1780174255000,-300.0,0.00039178,120]
[423506489,1780174255000,-932.0,0.00039125,2]
[423506490,1780174255000,-3638.0,0.00039125,2]
[423506491,1780174255000,-1000.0,0.00039135,90]
[423506494,1780174255000,-350.0,0.00039155,57]
[423506492,1780174255000,-829.0,0.00039143,2]
[423506499,1780174255000,-300.0,0.00039178,120]
[423506498,1780174255000,-300.0,0.00039178,120]
[423506496,1780174255000,-300.0,0.00039178,120]
[423506497,1780174255000,-300.0,0.00039178,120]
[423506493,1780174255000,-780.19,0.00039148,7]
[423506501,1780174255000,-300.0,0.00039178,120]
[423506471,1780174255000,-3000.0,0.00039056,2]
[423506485,1780174255000,-3000.0,0.00039056,2]
[423506475,1780174255000,-3000.0,0.00039056,2]
[423506443,1780174255000,-152.0,0.00038818,7]
[423506470,1780174255000,-211.38403459,0.00039056,2]
[423506449,1780174255000,-234.0,0.000389,2]
[423506441,1780174255000,-25428.0,0.000388,30]
[423506444,1780174255000,-152.0,0.00038818,7]
[423506445,1780174255000,-957.0,0.00038819,5]
[423506446,1780174255000,-152.0,0.00038896,7]
[423506442,1780174255000,-3139.45000407,0.00038812,2]
[423506448,1780174255000,-20000.0,0.000389,20]
[423506447,1780174255000,-152.0,0.00038896,7]
[423506451,1780174255000,-1000.0,0.00038911,90]
[423506461,1780174255000,-523.14,0.00039,30]
[423506450,1780174255000,-150.0,0.00038904,60]
[423506462,1780174255000,-2315.51,0.00039,60]
[423506453,1780174255000,-601.0,0.0003895,16]
[423506469,1780174255000,-379.0,0.00039034,2]
[423506457,1780174255000,-1337.47,0.00038952,7]
[423506452,1780174255000,-468.5,0.0003892,116]
[423506459,1780174255000,-152.0,0.00038974,7]
[423506458,1780174255000,-5786.468556,0.00038959,2]
[423506456,1780174255000,-780.19,0.00038952,7]
[423506455,1780174255000,-334.37,0.00038952,7]
[423506460,1780174255000,-250.0,0.00039,120]
[423506463,1780174255000,-28065.39,0.00039,120]
[423506466,1780174255000,-1000.0,0.00039,30]
[423506465,1780174255000,-1000.0,0.00039,30]
[423506467,1780174255000,-41158.73293024,0.00039,30]
[423506468,1780174255000,-3596.61,0.00039032,2]
[423506464,1780174255000,-1000.0,0.00039,30]
[423506472,1780174255000,-3000.0,0.00039056,2]
[423506454,1780174255000,-1576.31,0.00038952,7]
[423506513,1780174255000,-300.0,0.00039178,120]
[423506495,1780174255000,-300.0,0.00039178,120]
[423506503,1780174255000,-300.0,0.00039178,120]
[423506533,1780174255000,-300.0,0.00039178,120]
[423506542,1780174255000,-300.0,0.00039178,120]
[423506540,1780174255000,-300.0,0.00039178,120]
[423506541,1780174255000,-300.0,0.00039178,120]
[423506547,1780174255000,-518.43964429,0.0003919,2]
[423506543,1780174255000,-300.0,0.00039178,120]
[423506544,1780174255000,-300.0,0.00039178,120]
[423506545,1780174255000,-605.1058374,0.0003919,2]
[423506551,1780174255000,-8260.13072238,0.00039199,45]
[423506550,1780174255000,-200.0,0.00039199,45]
[423506546,1780174255000,-2090.15897129,0.0003919,2]
[423506548,1780174255000,-204.89987102,0.0003919,2]
[423506549,1780174255000,-191.87295522,0.00039199,45]